fUSD/lending_fUSD_20240101
["ID","MTS","AMOUNT","RATE_DAILY","PERIOD"]
[309788166,1704123058786,-150.0,0.00046482,5]
[309788167,1704123058795,-150.0,0.00046482,5]
[309788168,1704123058804,-150.0,0.00046482,5]
[309788169,1704123058815,-150.0,0.00046482,5]
[309788170,1704123058824,-284.82838319,0.00046482,5]
[309788171,1704123058835,-5000.0,0.000465,5]
[309788172,1704123058846,-82355.41184215,0.000465,30]
[309788173,1704123058856,-10000.0,0.000465,30]
[309788174,1704123058865,-296.400464,0.000465,17]
[309788175,1704123058875,-2110.0,0.000465,15]
[309788176,1704123058884,-48171.0,0.000465,2]
[309788177,1704123058893,-905.0,0.000465,2]
[309788178,1704123058902,-2782.61635029,0.00046547,36]
[309788179,1704123058918,-39850.291528,0.00046548,120]
[309788180,1704123058927,-211022.609987,0.00046548,120]
[309788181,1704123058937,-218325.3292876,0.0004655,14]
[309788182,1704123058950,-5025.84903,0.00046558,30]
[309788183,1704123058960,-400.0,0.0004657,3]
[309788184,1704123058971,-163.32168408,0.00046574,4]
[309788185,1704123058981,-14513.56921618,0.00046575,2]
[309788186,1704123058990,-1200.39592187,0.00046575,120]
[309788187,1704123058999,-167.86183272,0.00046575,7]
[309788188,1704123059009,-382.74576059,0.00046575,15]
[309788189,1704123059018,-8481.43559123,0.00046575,120]
[309788190,1704123059027,-222.47188712,0.00046575,120]
[309788191,1704123059037,-503.85,0.00046575,2]
[309788192,1704123059046,-500.0,0.00046575,2]
[309788193,1704123059056,-921.48,0.00046575,2]
[309788194,1704123059065,-5000.0,0.00046575,30]
[309788195,1704123059075,-5000.0,0.00046575,33]
[309788196,1704123059084,-5000.0,0.00046575,36]
[309788197,1704123059095,-1433.73861356,0.00046575,39]
[309788198,1704123059106,-500.0,0.00046575,7]
[309788199,1704123059116,-1500.0,0.00046575,30]
[309788200,1704123059126,-1500.0,0.00046575,33]
[309788201,1704123059135,-1500.0,0.00046575,36]
[309788202,1704123059145,-707.74438609,0.00046575,39]
[309788203,1704123059154,-11560.25032074,0.00046575,6]
[309788204,1704123059164,-11560.25032074,0.00046575,6]
[309788205,1704123059173,-11560.25032074,0.00046575,6]
[309788206,1704123059183,-11560.25032074,0.00046575,6]
[309788207,1704123059193,-11560.25032074,0.00046575,6]
[309788208,1704123059202,-11560.25032074,0.00046575,6]
[309788209,1704123059212,-11560.25032074,0.00046575,6]
[309788210,1704123059221,-11560.25032074,0.00046575,6]
[309788211,1704123059231,-11560.25032074,0.00046575,6]
[309788212,1704123059240,-11560.24932074,0.00046575,6]
[309788213,1704123059250,-500.0,0.00046575,5]
[309788214,1704123059259,-707.79,0.00046575,2]
[309788215,1704123059269,-622.98567503,0.00046575,12]
[309788216,1704123059278,-631.40077565,0.00046575,12]
[309788217,1704123059288,-6113.71,0.00046575,2]
[309788218,1704123059298,-1000.0,0.000466,23]
[309788219,1704123059307,-634.80403121,0.000466,11]
[309788220,1704123059317,-2721.7,0.0004664,7]
[309788221,1704123059326,-2721.7,0.0004664,7]
[309788222,1704123059336,-34006.0,0.00046661,30]
[309788223,1704123059345,-294.27632474,0.00046661,30]
[309788224,1704123059355,-944.0,0.00046661,30]
[309788225,1704123059364,-417.0,0.00046661,30]
[309788226,1704123059374,-2000.0,0.00046664,90]
[309788227,1704123059383,-617335.18,0.0004669,8]
[309788228,1704123059393,-250.91101611,0.0004669,2]
[309788229,1704123059403,-338.93036748,0.0004669,2]
[309788230,1704123059413,-9000.22459263,0.000467,120]
[309788231,1704123059543,-6000.0,0.000467,120]
[309788232,1704123059553,-2260.78806231,0.000467,117]
[309788233,1704123059563,-2009.08,0.0004672,2]
[309788234,1704123059573,-5000.0,0.00046759,21]
[309788235,1704123059582,-1001.0593,0.00046799,2]
[309788236,1704123059593,-1016.05,0.000468,40]
[309788237,1704123059602,-6851.76494693,0.00046847,5]
[309788238,1704123059612,-500.0,0.00046849,30]
[309788239,1704123059621,-500.0,0.00046849,2]
[309788240,1704123059631,-921.48,0.00046849,2]
[309788241,1704123059641,-500.0,0.00046849,7]
[309788242,1704123059651,-500.0,0.00046849,5]
[309788243,1704123059660,-707.79,0.00046849,2]
[309788244,1704123059670,-150.0,0.00046864,2]
[309788245,1704123059679,-191.0,0.00046881,28]
[309788246,1704123059689,-302.0,0.00046905,4]
[309788247,1704123059699,-2721.7,0.00046913,7]
[309788248,1704123059708,-2721.7,0.00046913,7]
[309788249,1704123059717,-150.0,0.0004694,2]
[309788250,1704123059726,-150.0,0.0004694,2]
[309788251,1704123059736,-150.0,0.0004694,2]
[309788252,1704123059745,-150.0,0.0004694,2]
[309788253,1704123059756,-396.1,0.0004694,2]
[309788254,1704123059765,-168.74,0.0004694,2]
[309788255,1704123059775,-520.11,0.0004694,2]
[309788256,1704123059786,-416.59,0.0004694,2]
[309788257,1704123059797,-520.11,0.0004694,2]
[309788258,1704123059808,-564.5,0.0004694,2]
[309788259,1704123059818,-416.59,0.0004694,2]
[309788260,1704123059829,-150.0,0.0004694,2]
[309788261,1704123059838,-150.0,0.0004694,2]
[309788262,1704123059847,-416.59,0.0004694,2]
[309788263,1704123059856,-516.96,0.0004694,2]
[309788264,1704123059866,-416.59,0.0004694,2]
[309788265,1704123059875,-772.4,0.0004694,2]
[309788266,1704123059884,-416.59,0.0004694,2]
[309788267,1704123059893,-153.51,0.0004694,2]
[309788268,1704123059903,-150.0,0.0004694,2]
[309788269,1704123059912,-416.59,0.0004694,2]
[309788270,1704123059922,-416.59,0.0004694,2]
[309788271,1704123059932,-416.59,0.0004694,2]
[309788272,1704123059942,-416.59,0.0004694,2]
[309788273,1704123059952,-416.59,0.0004694,2]
[309788274,1704123059962,-416.59,0.0004694,2]
[309788275,1704123059971,-416.59,0.0004694,2]
[309788276,1704123059981,-416.59,0.0004694,2]
[309788277,1704123059990,-416.59,0.0004694,2]
[309788278,1704123059999,-371.53,0.0004694,2]
[309788279,1704123060009,-20000.00032483,0.00046959,30]
[309788280,1704123060018,-50078.6430009,0.00046959,30]
[309788281,1704123060027,-2667.0745715,0.0004698,30]
[309788282,1704123060037,-503.85,0.00046986,2]
[309788283,1704123060047,-300.0,0.00046987,43]
[309788284,1704123060057,-2460.29495038,0.0004699,10]
[309788285,1704123060066,-9472.0,0.0004699,2]
[309788286,1704123060076,-151.83139537,0.00046999,30]
[309788287,1704123060085,-100000.0,0.00047,17]
[309788288,1704123060095,-25000.0,0.00047,117]
[309788289,1704123060104,-300.0,0.00047,48]
[309788290,1704123060114,-16916.55316899,0.00047,30]
[309788291,1704123060124,-182.97580601,0.00047,2]
[309788292,1704123060133,-1625.75267674,0.00047,30]
[309788293,1704123060142,-6392.0,0.00047,20]
[309788294,1704123060152,-198.46850456,0.00047,30]
[309788295,1704123060163,-1818.74030177,0.00047,120]
[309788296,1704123060173,-250.0,0.00047,30]
[309788297,1704123060182,-1769.58629287,0.00047,120]
[309788298,1704123060192,-250.0,0.00047,30]
[309788299,1704123060201,-873.0,0.00047,120]
[309788300,1704123060210,-7010.70709439,0.00047,30]
[309788301,1704123060220,-403958.21939882,0.00047,30]
[309788302,1704123060229,-17700.64442633,0.00047,60]
[309788303,1704123060239,-117373.91729724,0.00047,30]
[309788304,1704123060248,-5500.0,0.00047,3]
[309788305,1704123060257,-5746.89678561,0.00047,30]
[309788306,1704123060267,-2110.0,0.00047,15]
[309788307,1704123060277,-1000.0,0.00047,24]
[309788308,1704123060287,-665.596651,0.00047,12]
[309788309,1704123060296,-1035.1877878,0.00047,12]
[309788310,1704123060306,-629.91471846,0.00047,2]
[309788311,1704123060316,-1124.72633341,0.00047,45]
[309788312,1704123060326,-10000.0,0.00047,45]
[309788313,1704123060336,-10000.0,0.00047,45]
[309788314,1704123060346,-10000.0,0.00047,45]
[309788315,1704123060355,-10000.0,0.00047,45]
[309788316,1704123060365,-10000.0,0.00047,45]
[309788317,1704123060375,-10000.0,0.00047,45]
[309788318,1704123060384,-13472.91271341,0.00047,45]
[309788319,1704123060394,-1329.841645,0.00047,45]
[309788320,1704123060404,-300.0,0.00047068,120]
[309788321,1704123060414,-350.0,0.00047068,120]
[309788322,1704123060424,-500.0,0.00047123,30]
[309788323,1704123060433,-500.0,0.00047123,2]
[309788324,1704123060443,-921.48,0.00047123,2]
[309788325,1704123060452,-500.0,0.00047123,7]
[309788326,1704123060462,-445.39490726,0.00047123,5]
[309788327,1704123060474,-707.79,0.00047123,2]
[309788328,1704123060483,-34006.0,0.00047128,30]
[309788329,1704123060493,-944.0,0.00047128,30]
[309788330,1704123060503,-417.0,0.00047128,30]
[309788331,1704123060512,-150.0,0.00047135,120]
[309788332,1704123060522,-8327.322,0.00047158,120]
[309788333,1704123060532,-8327.322,0.00047158,120]
[309788334,1704123060542,-183.617,0.00047158,120]
[309788335,1704123060551,-8327.323,0.00047158,120]
[309788336,1704123060561,-183.618,0.00047158,120]
[309788337,1704123060571,-8327.322,0.00047158,120]
[309788338,1704123060581,-183.618,0.00047158,120]
[309788339,1704123060591,-8327.322,0.00047158,120]
[309788340,1704123060601,-183.617,0.00047158,120]
[309788341,1704123060611,-2721.7,0.00047187,7]
[309788342,1704123060621,-2721.7,0.00047187,7]
[309788343,1704123060631,-3080.0,0.0004719,2]
[309788344,1704123060640,-3080.0,0.0004719,2]
[309788345,1704123060650,-3080.0,0.0004719,2]
[309788346,1704123060659,-3080.0,0.0004719,2]
[309788347,1704123060669,-309.46,0.000472,2]
[309788348,1704123060679,-264.77906901,0.000472,19]
[309788349,1704123060688,-2042.0,0.0004725,10]
[309788350,1704123060698,-500.0,0.00047397,30]
[309788351,1704123060707,-503.85,0.00047397,2]
[309788352,1704123060717,-500.0,0.00047397,2]
[309788353,1704123060726,-921.48,0.00047397,2]
[309788354,1704123060736,-500.0,0.00047397,7]
[309788355,1704123060745,-707.79,0.00047397,2]
[309788356,1704123060755,-248.48,0.000474,120]
[309788357,1704123060764,-2721.7,0.0004746,7]
[309788358,1704123060773,-2721.7,0.0004746,7]
[309788359,1704123060783,-90593.08678488,0.000475,3]
[309788360,1704123060793,-536.94652568,0.000475,35]
[309788361,1704123060803,-270.0,0.000475,30]
[309788362,1704123060812,-20089.27508692,0.000475,5]
[309788363,1704123060821,-2110.0,0.000475,15]
[309788364,1704123060831,-12000.0,0.00047589,8]
[309788365,1704123060841,-34006.0,0.00047594,30]
[309788366,1704123060850,-944.0,0.00047594,30]
[309788367,1704123060860,-417.0,0.00047594,30]
[309788368,1704123060869,-1000.0,0.000476,24]
[309788369,1704123060880,-500.0,0.00047671,30]
[309788370,1704123060889,-500.0,0.00047671,2]
[309788371,1704123060898,-921.48,0.00047671,2]
[309788372,1704123060907,-500.0,0.00047671,7]
[309788373,1704123060917,-707.79,0.00047671,2]
[309788374,1704123060926,-604.0,0.00047693,7]
[309788375,1704123060935,-157.0,0.000477,5]
[309788376,1704123060947,-157.0,0.000477,5]
[309788377,1704123060957,-157.0,0.000477,5]
[309788378,1704123060967,-157.0,0.000477,5]
[309788379,1704123060976,-157.0,0.000477,5]
[309788380,1704123060985,-157.0,0.000477,5]
[309788381,1704123060995,-157.0,0.000477,5]
[309788382,1704123061004,-157.0,0.000477,5]
[309788383,1704123061017,-2721.7,0.00047733,7]
[309788384,1704123061026,-2721.7,0.00047733,7]
[309788385,1704123061037,-3080.0,0.00047735,120]
[309788386,1704123061046,-3080.0,0.00047735,120]
[309788387,1704123061055,-3080.0,0.00047735,120]
[309788388,1704123061064,-3080.0,0.00047735,120]
[309788389,1704123061074,-3080.0,0.00047735,120]
[309788390,1704123061083,-3080.0,0.00047735,120]
[309788391,1704123061094,-250.0,0.0004775,30]
[309788392,1704123061103,-300.0,0.00047753,120]
[309788393,1704123061112,-350.0,0.00047753,120]
[309788394,1704123061122,-150.0,0.00047801,2]
[309788395,1704123061133,-504.03493644,0.00047808,2]
[309788396,1704123061143,-212.42,0.00047821,15]
[309788397,1704123061152,-191.0,0.00047857,28]
[309788398,1704123061161,-203.57334548,0.00047898,4]
[309788399,1704123061172,-1953.91361712,0.000479,34]
[309788400,1704123061182,-1292.09339964,0.000479,34]
[309788401,1704123061191,-151.0,0.000479,4]
[309788402,1704123061201,-36312.3503046,0.000479,30]
[309788403,1704123061211,-110042.55961745,0.000479,34]
[309788404,1704123061219,-20000.0,0.000479,34]
[309788405,1704123061229,-1378.04896374,0.00047917,120]
[309788406,1704123061238,-200.627454,0.00047943,4]
[309788407,1704123061247,-500.0,0.00047945,30]
[309788408,1704123061257,-39850.291528,0.00047945,120]
[309788409,1704123061266,-500.0,0.00047945,2]
[309788410,1704123061275,-211022.609987,0.00047945,120]
[309788411,1704123061285,-921.48,0.00047945,2]
[309788412,1704123061294,-500.0,0.00047945,7]
[309788413,1704123061304,-707.79,0.00047945,2]
[309788414,1704123061314,-500.0,0.00047945,30]
[309788415,1704123061323,-300.0,0.00047987,45]
[309788416,1704123061332,-12419.0,0.0004799,2]
[309788417,1704123061342,-151.83139537,0.00047999,30]
[309788418,1704123061351,-1000.0,0.00047999,20]
[309788419,1704123061360,-100000.0,0.00048,18]
[309788420,1704123061370,-150.0,0.00048,7]
[309788421,1704123061379,-224340.61218266,0.00048,120]
[309788422,1704123061389,-172.40910141,0.00048,35]
[309788423,1704123061398,-300.0,0.00048,26]
[309788424,1704123061408,-67593.0,0.00048,20]
[309788425,1704123061417,-2565.98979397,0.00048,15]
[309788426,1704123061427,-300.0,0.00048,49]
[309788427,1704123061436,-3500.0,0.00048,35]
[309788428,1704123061445,-1597.30199337,0.00048,25]
[309788429,1704123061455,-2500.0,0.00048,14]
[309788430,1704123061466,-194.58057081,0.00048,30]
[309788431,1704123061475,-466.0952621,0.00048,30]
[309788432,1704123061484,-151.0,0.00048,120]
[309788433,1704123061495,-156.01,0.00048,120]
[309788434,1704123061506,-254.45,0.00048,30]
[309788435,1704123061515,-730.9,0.00048,30]
[309788436,1704123061525,-1504.0,0.00048,14]
[309788437,1704123061535,-250.0,0.00048,30]
[309788438,1704123061545,-500.0,0.00048,10]
[309788439,1704123061554,-1674.0,0.00048,120]
[309788440,1704123061564,-1643.0,0.00048,120]
[309788441,1704123061573,-336.0,0.00048,120]
[309788442,1704123061582,-306.0,0.00048,30]
[309788443,1704123061592,-98776.05052933,0.00048,10]
[309788444,1704123061601,-287.10998506,0.00048,30]
[309788445,1704123061641,-14438.94844004,0.00048,2]
[309788446,1704123061650,-2110.0,0.00048,15]
[309788447,1704123061660,-1000.0,0.00048,25]
[309788448,1704123061670,-665.596651,0.00048,13]
[309788449,1704123061679,-1035.1877878,0.00048,13]
[309788450,1704123061689,-1123.0,0.00048,45]
[309788451,1704123061698,-10000.0,0.00048,45]
[309788452,1704123061708,-10000.0,0.00048,45]
[309788453,1704123061717,-10000.0,0.00048,45]
[309788454,1704123061727,-10000.0,0.00048,45]
[309788455,1704123061736,-10000.0,0.00048,45]
[309788456,1704123061746,-10000.0,0.00048,45]
[309788457,1704123061756,-13472.0,0.00048,45]
[309788458,1704123061765,-1329.0,0.00048,45]
[309788459,1704123061775,-2721.7,0.00048006,7]
[309788460,1704123061784,-2721.7,0.00048006,7]
[309788461,1704123061794,-34006.0,0.00048061,30]
[309788462,1704123061803,-944.0,0.00048061,30]
[309788463,1704123061812,-417.0,0.00048061,30]
[309788464,1704123061822,-20000.0,0.000481,30]
[309788465,1704123061831,-2000.0,0.00048124,120]
[309788466,1704123061841,-5000.0,0.00048128,21]
[309788467,1704123061850,-500.0,0.00048219,30]
[309788468,1704123061859,-500.0,0.00048219,2]
[309788469,1704123061869,-921.48,0.00048219,2]
[309788470,1704123061878,-500.0,0.00048219,7]
[309788471,1704123061887,-707.79,0.00048219,2]
[309788472,1704123061896,-2721.7,0.00048279,7]
[309788473,1704123061906,-2721.7,0.00048279,7]
[309788474,1704123061915,-10000.0,0.000483,30]
[309788475,1704123061925,-305.39677059,0.000483,2]
[309788476,1704123061937,-200.0,0.000483,2]
[309788477,1704123061952,-153788.00984081,0.000484,120]
[309788478,1704123062281,-879.03315978,0.00038,2]
[309788479,1704123062292,-879.03315978,0.00038,2]
[309788480,1704123062301,-879.03315978,0.00038,2]
[309788481,1704123062311,-879.03315978,0.00038,2]
[309788482,1704123062322,-879.03315978,0.00038,2]
[309788483,1704123062331,-879.03315978,0.00038,2]
[309788484,1704123062342,-879.03315978,0.00038,2]
[309788485,1704123062351,-171.1334163,0.00038,2]
[309788486,1704123062363,-707.89974348,0.00038,2]
[309788487,1704123062374,-879.03315978,0.00038,2]
[309788488,1704123062383,-879.03315978,0.00038,2]
[309788489,1704123062397,-171.54,0.00045,2]
[309788490,1704123062414,-171.54,0.00045,2]
[309788491,1704123062424,-171.54,0.00045,2]
[309788492,1704123062433,-52.22721251,0.00045,2]
[309788493,1704123062446,-119.31278749,0.00045,2]
[309788494,1704123062457,-171.54,0.00045,2]
[309788495,1704123062467,-171.54,0.00045,2]
[309788496,1704123062482,-171.54,0.00045,2]
[309788497,1704123062492,-171.54,0.00045,2]
[309788498,1704123062502,-171.54,0.00045,2]
[309788499,1704123062512,-171.54,0.00045,2]
[309788500,1704123062522,-171.54,0.00045,2]
[309788501,1704123062532,-171.54,0.00045,2]
[309788502,1704123062542,-171.54,0.00045,2]
[309788503,1704123062552,-171.54,0.00045,2]
[309788504,1704123062562,-171.54,0.00045,2]
[309788505,1704123062573,-171.54,0.00045,2]
[309788506,1704123062582,-171.54,0.00045,2]
[309788507,1704123062592,-206674.07213341,0.000484,120]
[309788508,1704123062644,-0.00146913,0.00038,2]
[309788509,1704123062777,-730.24297491,0.00028899,2]
[309788510,1704123062789,-328.48723432,0.00028899,2]
[309788511,1704123062801,-1512.10184671,0.00028899,2]
[309788512,1704123062814,-1111.98881177,0.00028899,2]
[309788513,1704123062824,-4010.8664538,0.00028998,2]
[309788514,1704123062834,-1490.05571652,0.00034788,2]
[309788515,1704123062844,-306.32549362,0.00035687,7]
[309788516,1704123062855,-164.53250762,0.00038,2]
[309788517,1704123062867,-714.49918303,0.00038,2]
[309788518,1704123062877,-879.03315978,0.00038,2]
[309788519,1704123062886,-879.03315978,0.00038,2]
[309788520,1704123062895,-879.03315978,0.00038,2]
[309788521,1704123062907,-114.64288698,0.00038,2]
[309788522,1704123062924,-356.38234209,0.00027999,15]
[309788523,1704123062934,-242.89744999,0.00038,2]
[309788543,1704123152938,2811.0,0.00039168,30]
[309788544,1704123277428,7649.0,0.00039168,30]
[309788550,1704124108087,1697.2130446,0.00039187,30]
[309788564,1704124182025,129999.999999,0.00039187,30]
[309788588,1704124232063,-304.0,0.00026779,2]
[309788589,1704124232117,-391.17387652,0.00026779,2]
[309788590,1704124232127,-206.0,0.00026788,2]
[309788591,1704124232136,-387.61458597,0.00027687,2]
[309788592,1704124232149,-52.06591228,0.00027687,2]
[309788593,1704124232159,-197.93408772,0.00027687,2]
[309788594,1704124232175,-241.74641053,0.00027687,2]
[309788595,1704124232185,-103.09359716,0.00027688,2]
[309788598,1704124238142,-200.33393717,0.00026778,2]
[309788599,1704124238153,-292.33622309,0.00027688,2]
[309788600,1704124238196,-44.250678,0.00027688,2]
[309788601,1704124238206,-2033.23336113,0.0002772,2]
[309788602,1704124238216,-158.16120388,0.000289,2]
[309788603,1704124238226,-479.76,0.00029,2]
[309788604,1704124238236,-174.73,0.00029655,2]
[309788605,1704124238246,-193.22949326,0.0003,4]
[309788606,1704124238255,-206.0,0.00031533,10]
[309788607,1704124238265,-673.94989581,0.00032642,2]
[309788608,1704124238275,-948.21186792,0.00033335,2]
[309788609,1704124238293,-51.78813208,0.00033335,2]
[309788610,1704124238305,-1000.0,0.00034342,4]
[309788611,1704124238319,-948.21186792,0.00034343,2]
[309788612,1704124238331,-51.78813208,0.00034343,2]
[309788613,1704124238341,-200.0,0.00035,5]
[309788614,1704124238350,-97.40660953,0.000351,3]
[309788615,1704124238474,-1921.59339047,0.000351,3]
[309788616,1704124238484,-5404.07881163,0.000351,3]
[309788636,1704124240747,-738.26357982,0.000351,3]
[309788637,1704124242243,-4498.54797661,0.000351,3]
[309788638,1704124242256,-422.4797464,0.000351,3]
[309788663,1704124243029,-334.50626581,0.000351,3]
[309788664,1704124243042,-698.95312085,0.000351,3]
[309788665,1704124243054,-322.48199617,0.000351,3]
[309788666,1704124243189,-3120.24367002,0.000351,3]
[309788667,1704124243202,-3002.45446765,0.000351,3]
[309788668,1704124243247,-443.052,0.000351,3]
[309788943,1704124246175,-599.27979208,0.000351,3]
[309788945,1704124246188,-5029.65857296,0.000351,3]
[309788947,1704124246198,-300.36,0.00035576,2]
[309788950,1704124246207,-155.0,0.00036,4]
[309788952,1704124246216,-364.1801806,0.000361,2]
[309788954,1704124246226,-206.0,0.00036277,18]
[309788956,1704124246235,-196.27163534,0.00036701,4]
[309788958,1704124246245,-151.28,0.00037041,2]
[309788960,1704124246254,-1000.0,0.0003706,2]
[309788961,1704124246263,-165.21,0.00037082,15]
[309788962,1704124246273,-153.87,0.00037244,2]
[309788963,1704124246282,-250.0,0.00037286,111]
[309788964,1704124246293,-228.56,0.00037321,2]
[309788965,1704124246302,-514.55,0.00037425,2]
[309788966,1704124246312,-629.93,0.00037734,2]
[309788967,1704124246331,-159.16,0.00037813,2]
[309788968,1704124246342,-300.36,0.0003784,2]
[309788969,1704124246352,-250.0,0.00037864,2]
[309788970,1704124246362,-865.18,0.00037885,2]
[309788971,1704124246371,-262.94748596,0.00037998,4]
[309788972,1704124246381,-2162.16,0.00037998,4]
[309788973,1704124246391,-201.05679757,0.00037998,2]
[309788974,1704124246401,-930.3125847,0.00037998,2]
[309788975,1704124246411,-201.78832199,0.00037998,4]
[309788976,1704124246421,-416.92378313,0.00037998,4]
[309788977,1704124246430,-685.38563731,0.00037999,15]
[309788978,1704124246440,-2250.10658033,0.00037999,4]
[309788979,1704124271493,5597.19310799,0.0003919,120]
[309788980,1704124272861,999.999998,0.0003919,120]
[309788981,1704124274701,317.94425159,0.0003919,30]
[309788982,1704124282264,193.50264077,0.0003919,120]
[309788983,1704124289220,326.12755119,0.0003919,30]
[309788984,1704124289780,2167.20741189,0.0003919,30]
[309788985,1704124300752,700.22492915,0.0003919,120]
[309788986,1704124305360,2000.0,0.0003919,90]
[309788987,1704124318728,390.24942622,0.0003919,120]
[309788988,1704124333309,306.44944035,0.0003919,120]
[309788989,1704124400014,300.46458915,0.0003919,120]
[309788990,1704124406262,385.87700228,0.0003919,120]
[309788991,1704124433260,2000.0,0.00023,2]
[309788992,1704124433281,2000.0,0.00023,2]
[309788993,1704124433303,2000.0,0.00023,2]
[309788994,1704124433323,2000.0,0.00023,2]
[309788995,1704124433344,2000.0,0.00023,2]
[309788996,1704124433365,622.0,0.00023,2]
[309788997,1704124433389,147241.17820871,0.00023,2]
[309789018,1704124900777,7500.0,0.00039196,30]
[309789019,1704124916118,1960.0,0.00039196,30]
[309789066,1704125432143,-200.33393717,0.00024797,2]
[309789069,1704125432153,-156.09041946,0.00024798,2]
[309789071,1704125432162,-35.07823852,0.00024898,2]
[309789075,1704125432175,-4583.00876816,0.00024898,2]
[309789077,1704125432184,-563.0,0.00024898,2]
[309789079,1704125432194,-1057.20683484,0.00025099,2]
[309789080,1704125432203,-962.51555815,0.00025099,2]
[309789081,1704125432212,-1793.88595115,0.000251,2]
[309789082,1704125432223,-273.05567571,0.0002549,2]
[309789083,1704125432245,-156.09041944,0.00025875,2]
[309789084,1704125432254,-520.48321937,0.000264,2]
[309789085,1704125432264,-499.99,0.000264,2]
[309789086,1704125432274,-427.11,0.000264,2]
[309789087,1704125432285,-156.09041944,0.00026951,2]
[309789088,1704125432295,-184.90812477,0.000275,2]
[309789089,1704125432304,-316.44,0.00027773,2]
[309789090,1704125432314,-685.97261537,0.00028,2]
[309789091,1704125432324,-156.09041944,0.00028028,2]
[309789092,1704125432334,-2526.26173439,0.00028222,7]
[309789093,1704125432347,-386.4962287,0.00028222,7]
[309789094,1704125432359,-431.23170502,0.00028222,7]
[309789095,1704125432372,-538.89466019,0.00028222,7]
[309789096,1704125432384,-4246.54289374,0.00028222,7]
[309789097,1704125432394,-503.94,0.00029075,2]
[309789098,1704125432404,-156.09041944,0.00029104,2]
[309789099,1704125432414,-2513.32,0.00029111,2]
[309789100,1704125432423,-4218.5,0.00029111,2]
[309789101,1704125432434,-200.0,0.00029185,2]
[309789102,1704125432444,-250.0,0.00029258,2]
[309789103,1704125432454,-2513.32,0.00029279,2]
[309789104,1704125432464,-580.1554,0.0002939,2]
[309789105,1704125432473,-2513.32,0.00029447,2]
[309789106,1704125432483,-1684.30240545,0.000295,2]
[309789107,1704125432493,-200.0,0.00029528,2]
[309789108,1704125432502,-250.0,0.00029529,2]
[309789109,1704125432512,-229.17,0.00029586,2]
[309789110,1704125432522,-2513.32,0.00029615,2]
[309789111,1704125432533,-800.0,0.00029628,2]
[309789112,1704125432543,-442.64,0.0002965,2]
[309789113,1704125432553,-1805.19,0.00029652,2]
[309789114,1704125432564,-481.23,0.00029653,2]
[309789115,1704125432573,-229.17,0.00029667,2]
[309789116,1704125432583,-207.00797767,0.00029707,2]
[309789117,1704125432594,-155.0,0.00029707,2]
[309789118,1704125432604,-11679.0,0.00029709,2]
[309789119,1704125432614,-812.91,0.00029716,2]
[309789120,1704125432625,-229.17,0.00029748,2]
[309789121,1704125432635,-2513.32,0.00029784,2]
[309789122,1704125432644,-229.17,0.00029829,2]
[309789123,1704125432654,-7844.2109037,0.000299,2]
[309789124,1704125432668,-856.1876789,0.000299,2]
[309789125,1704125432680,-608.55071799,0.000299,2]
[309789126,1704125432702,-793.47369229,0.000299,2]
[309789127,1704125432714,-447.86083209,0.000299,2]